bitfinex/quotes_SOLUSD_20250106
["timestamp","ask_amount","ask_price","bid_price","bid_amount"]
[1736130177843,14.23236597,215.41,215.34,14.23236597]
[1736130181452,14.23236597,215.4,215.33,14.23236597]
[1736130181641,14.23236597,215.39,215.31,14.23236597]
[1736130181840,14.23236597,215.36,215.29,14.23236597]
[1736130182142,14.23236597,215.35,215.28,14.23236597]
[1736130182442,1.6301,215.34,215.28,14.23236597]
[1736130183040,1.6301,215.34,215.29,14.23236597]
[1736130184622,1.6301,215.34,215.28,14.23236597]
[1736130185146,1.6301,215.34,215.3,14.23236597]
[1736130186028,1.6301,215.34,215.29,14.23236597]
[1736130186230,1.6301,215.34,215.28,14.23236597]
[1736130186426,14.23236597,215.33,215.26,14.23236597]
[1736130186631,14.23236597,215.32,215.25,34.23236597]
[1736130187026,15.86246597,215.34,215.27,14.23236597]
[1736130187225,1.6301,215.34,215.28,14.23236597]
[1736130187520,15.86246597,215.34,215.27,14.23236597]
[1736130188136,15.86246597,215.34,215.28,14.23236597]
[1736130188137,1.6301,215.34,215.28,14.23236597]
[1736130189447,15.86246597,215.34,215.27,14.23236597]
[1736130189946,38.00924997,215.33,215.26,14.23236597]
[1736130190242,14.23236597,215.32,215.25,14.23236597]
[1736130190448,15.86246597,215.34,215.27,14.23236597]
[1736130191945,1.6301,215.34,215.28,14.23236597]
[1736130192446,1.6301,215.34,215.29,14.23236597]
[1736130193141,1.6301,215.34,215.27,14.23236597]
[1736130193724,14.23236597,215.33,215.26,14.23236597]
[1736130193958,14.23236597,215.32,215.25,14.23236597]
[1736130194447,14.23236597,215.31,215.24,14.23236597]
[1736130194831,14.23236597,215.32,215.25,14.23236597]
[1736130196221,14.23236597,215.31,215.24,14.23236597]
[1736130196521,14.23236597,215.32,215.24,14.23236597]
[1736130196749,14.23236597,215.32,215.25,14.23236597]
[1736130197856,38.00924997,215.33,215.26,14.23236597]
[1736130198053,1.6301,215.34,215.28,14.23236597]
[1736130198660,1.6301,215.34,215.29,14.23236597]
[1736130198863,1.5586,215.4,215.33,14.23236597]
[1736130199030,1.5586,215.4,215.38,14.23236597]
[1736130199363,1.5586,215.4,215.39,14.23236597]
[1736130199565,1.6131,215.46,215.39,14.23236597]
[1736130199864,1.6131,215.46,215.42,14.23236597]
[1736130200041,1.6131,215.46,215.4,14.23236597]
[1736130201550,1.6131,215.46,215.41,14.23236597]
[1736130201747,1.6131,215.46,215.39,14.23236597]
[1736130202353,15.84546597,215.46,215.39,14.23236597]
[1736130203731,1.6131,215.46,215.4,14.23236597]
[1736130203932,1.6131,215.46,215.41,14.23236597]
[1736130204131,1.6131,215.46,215.42,14.23236597]
[1736130204337,1.6131,215.46,215.43,14.23236597]
[1736130204530,1.6131,215.46,215.36,7.18920045]
[1736130204531,1.6131,215.46,215.41,14.23236597]
[1736130205267,14.23236597,215.48,215.41,14.23236597]
[1736130205565,1.5289,215.54,215.47,14.23236597]
[1736130205730,1.5289,215.54,215.49,14.23236597]
[1736130206169,1.5289,215.54,215.48,14.23236597]
[1736130206467,14.23236597,215.52,215.45,14.23236597]
[1736130206854,14.23236597,215.52,215.46,14.23236597]
[1736130207054,15.76126597,215.54,215.47,14.23236597]
[1736130207259,1.5289,215.54,215.5,14.23236597]
[1736130207633,1.5289,215.54,215.51,14.23236597]
[1736130208729,1.5289,215.54,215.5,14.23236597]
[1736130208930,1.5289,215.54,215.49,14.23236597]
[1736130209133,1.5289,215.54,215.48,14.23236597]
[1736130210261,1.5289,215.54,215.49,14.23236597]
[1736130210767,1.5289,215.54,215.5,14.23236597]
[1736130212164,1.5289,215.54,215.49,14.23236597]
[1736130212373,1.5289,215.54,215.48,14.23236597]
[1736130212665,14.23236597,215.51,215.4,2.36]
[1736130212881,14.23236597,215.49,215.42,14.23236597]
[1736130213678,14.23236597,215.49,215.38,3.05619478]
[1736130213970,14.23236597,215.49,215.42,14.23236597]
[1736130215279,14.23236597,215.49,215.43,14.23236597]
[1736130215789,30.234684,215.53,215.38,3.05619478]
[1736130215790,14.23236597,215.48,215.42,14.23236597]
[1736130215950,30.234684,215.53,215.38,0.69619478]
[1736130215951,14.23236597,215.44,215.38,14.23236597]
[1736130216383,15.83216597,215.45,215.39,14.23236597]
[1736130217059,1.5998,215.45,215.39,14.23236597]
[1736130217367,15.83216597,215.45,215.38,14.23236597]
[1736130217580,14.23236597,215.44,215.38,14.23236597]
[1736130217882,15.83216597,215.45,215.38,14.23236597]
[1736130218778,14.23236597,215.44,215.38,14.23236597]
[1736130219764,14.23236597,215.43,215.36,14.23236597]
[1736130220085,14.23236597,215.42,215.35,14.23236597]
[1736130220657,14.23236597,215.41,215.35,14.23236597]
[1736130221183,14.23236597,215.42,215.35,14.23236597]
[1736130221351,14.23236597,215.41,215.35,14.23236597]
[1736130221552,14.23236597,215.41,215.34,14.23236597]
[1736130221767,14.23236597,215.39,215.32,14.23236597]
[1736130221971,14.23236597,215.35,215.25,7.28955588]
[1736130222159,14.23236597,215.33,215.27,14.23236597]
[1736130222579,14.23236597,215.35,215.28,14.23236597]
[1736130222879,14.23236597,215.36,215.25,7.2897023]
[1736130223080,14.23236597,215.37,215.3,14.23236597]
[1736130223455,14.23236597,215.36,215.29,14.23236597]
[1736130224056,14.23236597,215.37,215.3,14.23236597]
[1736130224452,14.23236597,215.36,215.29,14.23236597]
[1736130224769,14.23236597,215.37,215.3,14.23236597]
[1736130224980,14.23236597,215.38,215.31,14.23236597]
[1736130225183,14.23236597,215.39,215.28,20.69657983]
[1736130225368,14.23236597,215.36,215.29,14.23236597]
[1736130225668,14.23236597,215.37,215.3,14.23236597]
[1736130226681,15.01251184,215.42,215.34,14.23236597]
[1736130226871,17.63937781,215.42,215.35,14.23236597]
[1736130227072,3.40701184,215.42,215.36,14.23236597]
[1736130227276,1.5442,215.42,215.36,14.23236597]
[1736130227984,14.23236597,215.39,215.32,14.23236597]
[1736130228287,14.23236597,215.4,215.32,14.23236597]
[1736130228495,14.23236597,215.4,215.3,20.0]
[1736130228676,14.23236597,215.37,215.3,14.23236597]
[1736130228868,14.23236597,215.36,215.29,34.23236597]
[1736130229064,14.23236597,215.36,215.29,14.23236597]
[1736130229270,14.23236597,215.37,215.3,14.23236597]
[1736130229469,14.23236597,215.37,215.31,14.23236597]
[1736130229659,14.23236597,215.39,215.32,14.23236597]
[1736130230584,23.776884,215.41,215.27,14.23236597]
[1736130230585,14.23236597,215.41,215.34,14.23236597]
[1736130230973,23.776884,215.41,215.35,14.23236597]
[1736130231364,38.00924997,215.41,215.34,14.23236597]
[1736130231799,15.77656597,215.42,215.35,14.23236597]
[1736130234612,14.23236597,215.38,215.27,0.69646084]
[1736130234910,14.23236597,215.36,215.27,0.69646084]
[1736130235068,14.23236597,215.32,215.25,14.23236597]
[1736130235477,15.84376597,215.33,215.26,14.23236597]
[1736130235689,14.23236597,215.32,215.25,14.23236597]
[1736130236691,15.84376597,215.33,215.26,14.23236597]
[1736130236903,14.23236597,215.32,215.25,14.23236597]
[1736130237482,15.84376597,215.33,215.26,14.23236597]
[1736130238186,14.23236597,215.32,215.25,14.23236597]
[1736130238384,14.23236597,215.32,215.23,14.23236597]
[1736130238385,14.23236597,215.3,215.23,14.23236597]
[1736130238718,14.23236597,215.29,215.22,14.23236597]
[1736130239018,14.23236597,215.29,215.23,34.23236597]
[1736130240484,14.23236597,215.25,215.15,7.30735639]
[1736130240690,14.23236597,215.25,215.18,14.23236597]
[1736130240876,14.23236597,215.26,215.2,14.23236597]
[1736130241077,16.59236597,215.3,215.23,14.23236597]
[1736130241525,16.59236597,215.3,215.19,0.69698469]
[1736130241526,14.23236597,215.28,215.22,14.23236597]
[1736130241880,14.23236597,215.29,215.22,14.23236597]
[1736130243908,38.00924997,215.29,215.18,20.0]
[1736130244112,14.23236597,215.28,215.21,14.23236597]
[1736130244613,14.23236597,215.27,215.2,14.23236597]
[1736130245184,14.23236597,215.26,215.2,14.23236597]
[1736130245382,14.23236597,215.26,215.19,14.23236597]
[1736130245908,1.5338,215.23,215.17,14.23236597]
[1736130246211,15.76616597,215.23,215.16,14.23236597]
[1736130246908,1.5338,215.23,215.18,14.23236597]
[1736130247212,1.5338,215.23,215.13,0.69706138]
[1736130247394,1.5338,215.23,215.18,14.23236597]
[1736130248001,1.5338,215.23,215.2,14.23236597]
[1736130248492,1.5338,215.23,215.21,14.23236597]
[1736130248695,15.75856597,215.29,215.22,14.23236597]
[1736130248893,1.5262,215.29,215.23,14.23236597]
[1736130249113,15.75856597,215.29,215.22,14.23236597]
[1736130249492,38.00924997,215.28,215.21,14.23236597]
[1736130253620,1.5262,215.29,215.25,14.23236597]
[1736130253820,1.5262,215.29,215.26,14.23236597]
[1736130254123,1.5262,215.29,215.19,20.0]
[1736130254124,1.5262,215.29,215.24,14.23236597]
[1736130254720,1.5262,215.29,215.26,14.23236597]
[1736130255107,1.5262,215.29,215.25,14.23236597]
[1736130256616,1.5262,215.29,215.26,14.23236597]
[1736130256823,1.5404,215.34,215.28,14.23236597]
[1736130256991,1.5404,215.34,215.21,20.69679834]
[1736130256992,1.5404,215.34,215.29,14.23236597]
[1736130257193,1.5404,215.34,215.28,14.23236597]
[1736130257703,1.5404,215.34,215.29,14.23236597]
[1736130257887,1.5404,215.34,215.3,14.23236597]
[1736130258095,1.5404,215.34,215.31,14.23236597]
[1736130258314,1.5404,215.34,215.32,14.23236597]
[1736130258504,1.5404,215.34,215.31,14.23236597]
[1736130258917,1.5404,215.34,215.32,14.23236597]
[1736130259122,1.5404,215.34,215.31,14.23236597]
[1736130259305,1.5404,215.34,215.29,14.23236597]
[1736130259933,1.5404,215.34,215.3,14.23236597]
[1736130260430,15.76536597,215.4,215.33,14.23236597]
[1736130260719,1.533,215.4,215.36,14.23236597]
[1736130260925,1.533,215.4,215.38,14.23236597]
[1736130261131,1.533,215.4,215.37,14.23236597]
[1736130261425,1.533,215.4,215.34,14.23236597]
[1736130261926,15.76536597,215.4,215.33,14.23236597]
[1736130262220,38.00924997,215.39,215.32,14.23236597]
[1736130263599,14.23236597,215.37,215.3,14.23236597]
[1736130263799,14.23236597,215.35,215.28,14.23236597]
[1736130264917,14.23236597,215.32,215.25,16.59236597]
[1736130265117,14.23236597,215.31,215.25,14.23236597]
[1736130265503,14.23236597,215.32,215.25,14.23236597]
[1736130267126,14.23236597,215.32,215.22,6.4391]
[1736130267127,14.23236597,215.32,215.26,14.23236597]
[1736130267436,14.23236597,215.33,215.26,14.23236597]
[1736130268131,38.00924997,215.32,215.25,14.23236597]
[1736130268329,14.23236597,215.29,215.18,0.69671361]
[1736130268530,14.23236597,215.29,215.22,14.23236597]
[1736130269514,38.00924997,215.3,215.23,14.23236597]
[1736130269713,15.75026597,215.31,215.25,14.23236597]
[1736130270101,15.75026597,215.31,215.24,14.23236597]
[1736130270522,15.75026597,215.31,215.25,14.23236597]
[1736130271039,1.5179,215.31,215.25,14.23236597]
[1736130272540,15.75026597,215.31,215.24,14.23236597]
[1736130275450,1.5179,215.31,215.25,14.23236597]
[1736130276146,23.776884,215.3,215.24,14.23236597]
[1736130276566,38.00924997,215.3,215.23,14.23236597]
[1736130278020,23.776884,215.3,215.24,14.23236597]
[1736130280327,17.58089414,215.31,215.24,14.23236597]
[1736130280532,15.75026597,215.31,215.24,14.23236597]
[1736130280735,1.5179,215.31,215.26,14.23236597]
[1736130281128,1.5179,215.31,215.25,14.23236597]
[1736130281557,1.5179,215.31,215.2,20.69686083]
[1736130281558,15.75026597,215.31,215.24,14.23236597]
[1736130281755,14.23236597,215.28,215.22,14.23236597]
[1736130281925,14.23236597,215.26,215.19,14.23236597]
[1736130282549,14.23236597,215.25,215.18,14.23236597]
[1736130282930,14.23236597,215.26,215.19,14.23236597]
[1736130283253,14.23236597,215.27,215.2,14.23236597]
[1736130284025,14.23236597,215.28,215.21,14.23236597]
[1736130284227,38.00924997,215.3,215.23,14.23236597]
[1736130284663,14.23236597,215.28,215.16,0.69699059]
[1736130284849,14.23236597,215.29,215.23,14.23236597]
[1736130286059,14.23236597,215.3,215.23,14.23236597]
[1736130286260,27.36156597,215.31,215.24,14.23236597]
[1736130286628,1.5179,215.31,215.25,14.23236597]
[1736130286838,1.5179,215.31,215.27,14.23236597]
[1736130287053,1.5179,215.31,215.28,14.23236597]
[1736130287430,1.5179,215.31,215.27,14.23236597]
[1736130287637,1.5179,215.31,215.28,14.23236597]
[1736130288463,2.36,215.38,215.3,14.23236597]
[1736130288464,1.5897,215.36,215.3,14.23236597]
[1736130289661,1.5897,215.36,215.31,14.23236597]
[1736130289835,1.5897,215.36,215.3,14.23236597]
[1736130292226,1.5897,215.36,215.31,14.23236597]
[1736130292430,1.5897,215.36,215.3,14.23236597]
[1736130292749,15.82206597,215.36,215.29,14.23236597]
[1736130293134,14.23236597,215.35,215.28,14.23236597]
[1736130293339,14.23236597,215.34,215.27,14.23236597]
[1736130293641,14.23236597,215.33,215.26,14.23236597]
[1736130294734,14.23236597,215.35,215.28,14.23236597]
[1736130294935,27.43066597,215.36,215.29,14.23236597]
[1736130295561,14.23236597,215.35,215.28,14.23236597]
[1736130295936,27.43066597,215.36,215.29,14.23236597]
[1736130296652,13.1983,215.36,215.21,0.69674467]
[1736130296851,13.1983,215.36,215.33,14.23236597]
[1736130296852,1.5897,215.36,215.33,14.23236597]
[1736130297045,1.5897,215.36,215.32,14.23236597]
[1736130298964,1.5897,215.36,215.33,14.23236597]
[1736130299148,1.5649,215.4,215.34,14.23236597]
[1736130299345,15.79726597,215.4,215.33,14.23236597]
[1736130299754,1.5649,215.4,215.34,14.23236597]
[1736130300563,15.79726597,215.4,215.33,14.23236597]
[1736130301966,14.23236597,215.39,215.32,14.23236597]
[1736130302170,14.23236597,215.37,215.3,14.23236597]
[1736130302374,14.23236597,215.35,215.28,14.23236597]
[1736130303559,14.23236597,215.36,215.29,14.23236597]
[1736130305556,14.23236597,215.37,215.3,14.23236597]
[1736130306353,14.23236597,215.36,215.29,14.23236597]
[1736130307570,14.23236597,215.37,215.3,14.23236597]
[1736130308365,14.23236597,215.38,215.31,14.23236597]
[1736130308875,14.23236597,215.39,215.32,14.23236597]
[1736130309780,14.23236597,215.38,215.31,14.23236597]
[1736130309948,14.23236597,215.34,215.27,14.23236597]
[1736130310904,14.23236597,215.35,215.28,14.23236597]
[1736130311268,25.84086597,215.36,215.28,14.23236597]
[1736130311781,25.84086597,215.36,215.29,14.23236597]
[1736130312900,25.84086597,215.36,215.28,14.23236597]
[1736130313102,14.23236597,215.32,215.26,14.23236597]
[1736130313280,14.23236597,215.31,215.24,14.23236597]
[1736130314115,1.5648,215.33,215.28,14.23236597]
[1736130314471,14.23236597,215.32,215.25,14.23236597]
[1736130315207,15.79716597,215.33,215.25,14.23236597]
[1736130315501,15.79716597,215.33,215.26,14.23236597]
[1736130315678,1.5648,215.33,215.28,14.23236597]
[1736130316589,1.5648,215.33,215.29,14.23236597]
[1736130316787,1.5648,215.33,215.31,14.23236597]
[1736130316987,1.5648,215.33,215.31,9.11635146]
[1736130318108,1.5648,215.33,215.22,0.69660151]
[1736130318275,1.5648,215.33,215.28,9.11635146]
[1736130322101,1.5648,215.33,215.29,9.11635146]
[1736130323605,1.5648,215.33,215.3,9.11635146]
[1736130323999,1.518,215.38,215.3,9.11635146]
[1736130324877,1.518,215.38,215.32,9.11635146]
[1736130325902,9.11635146,215.37,215.3,9.11635146]
[1736130326278,9.11635146,215.36,215.28,9.11635146]
[1736130326705,9.11635146,215.32,215.21,0.69667559]
[1736130326899,9.11635146,215.32,215.24,9.11635146]
[1736130327100,9.11635146,215.32,215.25,9.11635146]
[1736130327297,9.11635146,215.33,215.25,9.11635146]
[1736130327612,25.299384,215.32,215.25,9.11635146]
[1736130328500,1.5225,215.32,215.25,9.11635146]
[1736130328800,1.5225,215.32,215.27,9.11635146]
[1736130331992,1.5225,215.32,215.26,9.11635146]
[1736130333713,1.5225,215.32,215.25,9.11635146]
[1736130334709,1.5225,215.32,215.26,9.11635146]
[1736130335619,1.5225,215.32,215.3,9.11635146]
[1736130335985,32.89323546,215.37,215.3,9.11635146]
[1736130336211,25.319684,215.37,215.31,9.11635146]
[1736130338411,1.5428,215.37,215.32,9.11635146]
[1736130338784,1.5428,215.37,215.34,9.11635146]
[1736130341030,1.5428,215.37,215.35,9.11635146]
[1736130343708,10.71705146,215.42,215.35,9.11635146]
[1736130343908,1.6007,215.42,215.39,9.11635146]
[1736130344126,1.6007,215.42,215.38,9.11635146]
[1736130344314,1.6007,215.42,215.37,9.11635146]
[1736130344504,1.6007,215.42,215.36,9.11635146]
[1736130345315,9.11635146,215.41,215.35,9.11635146]
[1736130345498,10.71705146,215.42,215.35,9.11635146]
[1736130346019,9.11635146,215.37,215.31,9.11635146]
[1736130346221,9.11635146,215.38,215.31,9.11635146]
[1736130346996,9.11635146,215.38,215.32,9.11635146]
[1736130347298,9.11635146,215.39,215.32,9.11635146]
[1736130349537,35.382584,215.41,215.32,9.11635146]
[1736130349711,9.11635146,215.4,215.33,9.11635146]
[1736130351041,20.72205146,215.41,215.34,9.11635146]
[1736130351214,10.71705146,215.42,215.35,9.11635146]
[1736130351681,1.6007,215.42,215.36,9.11635146]
[1736130351933,1.6007,215.42,215.39,9.11635146]
[1736130352119,21.35156789,215.45,215.41,9.11635146]
[1736130352307,21.35156789,215.45,215.42,9.11635146]
[1736130352509,1.5797,215.48,215.43,9.11635146]
[1736130355965,1.5797,215.48,215.37,0.69623577]
[1736130355966,1.5797,215.48,215.45,9.11635146]
[1736130356133,22.38115146,215.53,215.46,9.11635146]
[1736130356332,23.776884,215.52,215.46,9.11635146]
[1736130356552,23.776884,215.52,215.39,0.69612123]
[1736130356553,9.11635146,215.51,215.45,9.11635146]
[1736130356765,9.11635146,215.51,215.44,9.11635146]
[1736130357062,9.11635146,215.47,215.41,9.11635146]
[1736130357231,9.11635146,215.49,215.42,9.11635146]
[1736130359055,9.11635146,215.48,215.42,9.11635146]
[1736130359268,9.11635146,215.46,215.36,6.2532]
[1736130359559,9.11635146,215.46,215.39,9.11635146]
[1736130360355,9.11635146,215.43,215.37,9.11635146]
[1736130360665,1.6651,215.44,215.39,9.11635146]
[1736130360841,1.6651,215.44,215.4,9.11635146]
[1736130361561,1.6651,215.44,215.41,9.11635146]
[1736130361737,9.11635146,215.49,215.43,9.11635146]
[1736130362467,9.11635146,215.49,215.42,9.11635146]
[1736130362660,9.11635146,215.48,215.41,9.11635146]
[1736130362839,9.11635146,215.46,215.39,9.11635146]
[1736130363039,9.11635146,215.47,215.4,9.11635146]
[1736130363468,9.11635146,215.46,215.39,9.11635146]
[1736130363757,9.11635146,215.44,215.37,9.11635146]
[1736130364667,9.11635146,215.43,215.37,9.11635146]
[1736130366169,9.11635146,215.44,215.37,9.11635146]
[1736130366470,11.03020187,215.47,215.4,9.11635146]
[1736130366839,9.11635146,215.47,215.4,9.11635146]
[1736130367039,9.11635146,215.48,215.41,9.11635146]
[1736130367237,32.89323546,215.48,215.41,9.11635146]
[1736130367656,22.56159578,215.49,215.42,9.11635146]
[1736130367940,13.44524432,215.49,215.43,9.11635146]
[1736130368138,1.6085,215.51,215.44,9.11635146]
[1736130368355,10.72485146,215.51,215.44,9.11635146]
[1736130368754,9.11635146,215.5,215.43,9.11635146]
[1736130368966,9.11635146,215.48,215.37,20.0]
[1736130369163,9.11635146,215.49,215.42,9.11635146]
[1736130369873,9.11635146,215.46,215.39,9.11635146]
[1736130370252,9.11635146,215.47,215.4,9.11635146]
[1736130371686,9.11635146,215.46,215.39,9.11635146]
[1736130371855,9.11635146,215.44,215.37,9.11635146]
[1736130372578,9.11635146,215.44,215.38,9.11635146]
[1736130372879,9.11635146,215.44,215.37,9.11635146]
[1736130373776,9.11635146,215.4,215.34,9.11635146]
[1736130374086,9.11635146,215.42,215.35,9.11635146]
[1736130374860,9.11635146,215.42,215.36,9.11635146]
[1736130375070,10.65945146,215.43,215.37,9.11635146]
[1736130375275,1.5431,215.43,215.37,9.11635146]
[1736130376776,1.5431,215.43,215.38,9.11635146]
[1736130379585,1.5431,215.43,215.37,9.11635146]
[1736130380985,1.5431,215.43,215.38,9.11635146]
[1736130381357,1.5431,215.43,215.37,9.11635146]
[1736130381563,32.89323546,215.42,215.35,9.11635146]
[1736130381782,9.11635146,215.41,215.34,9.11635146]
[1736130382003,9.11635146,215.37,215.25,9.35952027]
[1736130382161,9.11635146,215.37,215.3,9.11635146]
[1736130382790,9.11635146,215.37,215.31,9.11635146]
[1736130383367,1.5431,215.43,215.25,6.323]
[1736130383368,9.11635146,215.35,215.25,6.323]
[1736130383684,32.89323546,215.34,215.27,9.11635146]
[1736130383888,9.11635146,215.33,215.26,9.11635146]
[1736130384084,1.5687,215.36,215.26,9.11635146]
[1736130384085,9.11635146,215.32,215.26,9.11635146]
[1736130384759,9.11635146,215.32,215.21,0.69667976]
[1736130384962,9.11635146,215.32,215.25,9.11635146]
[1736130385976,9.11635146,215.32,215.26,9.11635146]
[1736130386992,22.59006987,215.34,215.27,9.11635146]
[1736130387487,23.776884,215.32,215.26,9.11635146]
[1736130389694,9.11635146,215.32,215.26,9.11635146]
[1736130389889,9.11635146,215.32,215.25,9.11635146]
[1736130390101,13.47371841,215.34,215.17,2.34]
[1736130390102,10.66835146,215.28,215.17,2.34]
[1736130390401,1.552,215.28,215.23,9.11635146]
[1736130390959,10.66835146,215.28,215.22,9.11635146]
[1736130391179,10.66835146,215.28,215.21,9.11635146]
[1736130391378,10.66835146,215.28,215.22,9.11635146]
[1736130392674,10.66835146,215.28,215.21,9.11635146]
[1736130392902,9.11635146,215.26,215.15,6.571]
[1736130393096,9.11635146,215.26,215.19,9.11635146]
[1736130393597,32.89323546,215.27,215.2,9.11635146]
[1736130394300,9.11635146,215.26,215.19,9.11635146]
[1736130394682,10.66835146,215.28,215.21,9.11635146]
[1736130395695,1.552,215.28,215.22,9.11635146]
[1736130395887,1.552,215.28,215.16,37.16240707]
[1736130395888,1.552,215.28,215.23,9.11635146]
[1736130396212,10.66835146,215.28,215.22,9.11635146]
[1736130396378,10.66835146,215.28,215.16,37.16240707]
[1736130396379,10.66835146,215.28,215.21,9.11635146]
[1736130396579,9.11635146,215.27,215.21,9.11635146]
[1736130397682,32.89323546,215.27,215.16,0.69700123]
[1736130397879,9.11635146,215.25,215.14,3.03692096]
[1736130398080,9.11635146,215.25,215.19,9.11635146]
[1736130398398,9.11635146,215.24,215.18,9.11635146]
[1736130398606,9.11635146,215.23,215.11,2.34]
[1736130398788,9.11635146,215.22,215.1,6.97820168]
[1736130398989,9.11635146,215.23,215.16,9.11635146]
[1736130399188,11.6138,215.26,215.18,9.11635146]
[1736130399390,9.11635146,215.25,215.18,9.11635146]
[1736130399596,20.73015146,215.26,215.19,9.11635146]
[1736130400509,9.11635146,215.25,215.18,9.11635146]
[1736130401007,9.11635146,215.25,215.19,9.11635146]
[1736130401185,1.552,215.28,215.21,9.11635146]
[1736130401385,9.11635146,215.27,215.21,9.11635146]
[1736130401804,10.66835146,215.28,215.22,9.11635146]
[1736130402206,1.552,215.28,215.23,9.11635146]
[1736130404003,1.552,215.28,215.24,9.11635146]
[1736130404703,1.552,215.28,215.25,9.11635146]
[1736130404901,1.552,215.28,215.24,9.11635146]
[1736130405109,1.552,215.28,215.25,9.11635146]
[1736130405316,1.552,215.28,215.26,9.11635146]
[1736130405803,1.552,215.28,215.27,9.11635146]
[1736130406113,10.62215146,215.34,215.27,9.11635146]
[1736130406283,10.62215146,215.34,215.28,9.11635146]
[1736130408610,1.5058,215.34,215.28,9.11635146]
[1736130408789,1.5058,215.34,215.31,9.11635146]
[1736130409510,23.776884,215.38,215.33,9.11635146]
[1736130409722,1.5058,215.39,215.34,9.11635146]
[1736130413284,1.5058,215.39,215.35,9.11635146]
[1736130413818,1.5058,215.39,215.36,9.11635146]
[1736130414016,1.5058,215.39,215.37,9.11635146]
[1736130414516,21.35556719,215.41,215.38,9.11635146]
[1736130414705,21.35556719,215.41,215.39,9.11635146]
[1736130415916,1.5876,215.45,215.4,9.11635146]
[1736130416915,1.5876,215.45,215.41,9.11635146]
[1736130417117,1.5876,215.45,215.43,9.11635146]
[1736130417492,1.5876,215.45,215.41,9.11635146]
[1736130417802,1.5876,215.45,215.39,9.11635146]
[1736130418116,1.5876,215.45,215.41,9.11635146]
[1736130418319,1.5876,215.45,215.43,9.11635146]
[1736130418518,1.5599,215.51,215.44,9.11635146]
[1736130418707,10.67625146,215.51,215.44,9.11635146]
[1736130419405,9.11635146,215.5,215.44,9.11635146]
[1736130419805,9.11635146,215.5,215.38,20.0]
[1736130419996,9.11635146,215.49,215.43,9.11635146]
[1736130420199,32.89323546,215.5,215.43,9.11635146]
[1736130420816,9.11635146,215.5,215.44,9.11635146]
[1736130421012,10.67625146,215.51,215.45,9.11635146]
[1736130421596,1.5599,215.51,215.47,9.11635146]
[1736130421833,1.5599,215.51,215.48,9.11635146]
[1736130422122,1.5599,215.51,215.42,20.0]
[1736130422297,1.5599,215.51,215.47,9.11635146]
[1736130422990,10.67625146,215.51,215.45,9.11635146]
[1736130423419,1.5599,215.51,215.45,9.11635146]
[1736130423623,1.5599,215.51,215.46,9.11635146]
[1736130423818,1.5599,215.51,215.47,9.11635146]
[1736130425509,1.5599,215.51,215.41,20.0]
[1736130425710,1.5599,215.51,215.46,9.11635146]
[1736130426499,10.67625146,215.51,215.41,20.0]
[1736130426697,9.11635146,215.49,215.42,9.11635146]
[1736130427021,9.11635146,215.48,215.38,136.2]
[1736130427323,9.11635146,215.47,215.41,9.11635146]
[1736130427506,9.11635146,215.48,215.42,9.11635146]
[1736130428123,9.11635146,215.47,215.38,20.0]
[1736130428311,9.11635146,215.46,215.39,9.11635146]
[1736130428818,9.11635146,215.47,215.4,9.11635146]
[1736130429019,9.11635146,215.48,215.41,9.11635146]
[1736130429231,9.11635146,215.49,215.42,9.11635146]
[1736130429421,9.11635146,215.49,215.43,9.11635146]
[1736130429613,9.11635146,215.49,215.42,9.11635146]
[1736130431428,9.11635146,215.49,215.43,9.11635146]
[1736130431928,44.49413546,215.5,215.44,9.11635146]
[1736130432127,13.01625146,215.51,215.45,9.11635146]
[1736130432828,9.11635146,215.5,215.44,9.11635146]
[1736130433524,13.01625146,215.51,215.44,9.11635146]
[1736130433731,3.8999,215.51,215.45,9.11635146]
[1736130434327,13.01625146,215.51,215.44,9.11635146]
[1736130435943,3.8999,215.51,215.46,9.11635146]
[1736130436103,1.5599,215.51,215.47,9.11635146]
[1736130437023,1.5599,215.51,215.46,9.11635146]
[1736130438734,1.5599,215.51,215.45,9.11635146]
[1736130439232,1.5599,215.51,215.46,9.11635146]
[1736130440108,1.5599,215.51,215.45,9.11635146]
[1736130440928,1.5599,215.51,215.4,0.69607156]
[1736130440929,9.11635146,215.5,215.44,9.11635146]
[1736130441348,9.11635146,215.45,215.35,6.2003]
[1736130441504,9.11635146,215.45,215.38,9.11635146]
[1736130441829,23.776884,215.5,215.4,9.11635146]
[1736130441830,9.11635146,215.46,215.4,9.11635146]
[1736130442527,9.11635146,215.46,215.39,9.11635146]
[1736130442731,9.11635146,215.44,215.38,9.11635146]
[1736130443310,9.11635146,215.42,215.35,9.11635146]
[1736130443535,9.11635146,215.41,215.35,9.11635146]
[1736130443828,9.11635146,215.42,215.35,9.11635146]
[1736130444128,10.66935146,215.43,215.37,9.11635146]